bitfinex-derivatives/quotes_SOLF0:USTF0_20260211
["timestamp","ask_amount","ask_price","bid_price","bid_amount"]
[1770798859273,141.7,80.984,80.952,10.65137847]
[1770798859567,3.13273437,80.99,80.952,10.65137847]
[1770798859759,3.13273437,80.97,80.952,0.07896359]
[1770798860367,3.13273437,80.97,80.935,10.57241488]
[1770798860565,98.64,80.978,80.935,10.57241488]
[1770798861174,3.13273437,80.97,80.948,0.07908213]
[1770798861666,98.64,80.978,80.948,0.07908213]
[1770798862471,3.13273437,80.98,80.948,0.07908213]
[1770798862867,3.13273437,80.97,80.948,0.07908213]
[1770798863177,3.13273437,80.98,80.948,10.70225422]
[1770798863872,102.02,80.984,80.949,10.62317209]
[1770798864069,3.13273437,80.99,80.949,10.62317209]
[1770798864673,3.13273437,80.99,80.95,11.124]
[1770798864976,3.13273437,80.99,80.951,10.62285687]
[1770798866568,3.13273437,80.99,80.952,11.1238]
[1770798866770,3.13273437,80.99,80.953,10.62147896]
[1770798867167,3.13273437,80.98,80.953,10.62147896]
[1770798867766,3.13273437,80.99,80.953,10.62147896]
[1770798868169,3.13273437,80.99,80.958,0.08297063]
[1770798868883,3.12482105,80.99,80.958,0.08297063]
[1770798869072,3.12482105,81.0,80.958,10.72659351]
[1770798873190,120.44,81.002,80.961,10.62649054]
[1770798873686,3.12482105,80.99,80.961,10.62649054]
[1770798873994,3.12482105,81.0,80.961,10.62649054]
[1770798874481,120.44,81.002,80.958,0.08297063]
[1770798874482,3.12482105,80.99,80.958,0.08297063]
[1770798878377,3.12482105,80.99,80.958,10.75202097]
[1770798879097,3.12482105,81.0,80.959,10.66905034]
[1770798879293,3.12482105,80.99,80.959,10.66905034]
[1770798881594,11.1173,81.0,80.959,10.66905034]
[1770798881595,3.12482105,81.0,80.959,10.66905034]
[1770798882297,3.12482105,80.99,80.959,10.66905034]
[1770798882797,3.12482105,81.0,80.959,10.66905034]
[1770798884085,3.12482105,80.99,80.959,10.66905034]
[1770798884692,3.12482105,80.98,80.958,0.08297063]
[1770798884988,3.12482105,80.99,80.958,0.08297063]
[1770798889693,3.12482105,81.0,80.958,10.68079483]
[1770798890207,3.12482105,81.0,80.958,10.5978242]
[1770798890702,3.12482105,81.0,80.971,0.08118491]
[1770798892603,3.123601,81.0,80.971,0.08118491]
[1770798893005,3.123601,80.99,80.952,11.1237]
[1770798894505,3.123601,80.97,80.931,10.59184951]
[1770798894708,147.48,80.989,80.931,10.59184951]
[1770798894709,3.123601,80.98,80.931,10.59184951]
[1770798895704,3.123601,80.98,80.92,3.123601]
[1770798895705,3.123601,80.98,80.942,21.71684951]
[1770798895901,98.54,80.984,80.943,10.59184951]
[1770798896299,294.0,81.024,80.93,10.6398113]
[1770798896300,0.08023967,80.969,80.93,10.6398113]
[1770798896499,3.123601,80.96,80.93,10.6398113]
[1770798898098,3.123601,80.95,80.912,11.1292]
[1770798899418,3.123601,80.95,80.913,10.62696201]
[1770798899710,3.123601,80.95,80.902,472.04182987]
[1770798899711,3.123601,80.95,80.917,10.62696201]
[1770798899911,0.07988247,80.939,80.917,10.62696201]
[1770798900107,148.04,80.953,80.917,10.62696201]
[1770798900505,3.123601,80.95,80.919,10.61168781]
[1770798902006,148.04,80.953,80.924,10.61168781]
[1770798902409,3.123601,80.95,80.924,10.61168781]
[1770798902610,3.123601,80.95,80.926,10.6567961]
[1770798902908,148.04,80.953,80.926,10.6567961]
[1770798903110,3.123601,80.95,80.926,10.6567961]
[1770798905411,3.123601,80.96,80.926,10.6567961]
[1770798905708,3.123601,80.96,80.929,10.5382422]
[1770798906707,3.123601,80.96,80.932,11.1264]
[1770798907510,3.123601,80.96,80.926,0.07928859]
[1770798907703,149.04,80.968,80.926,0.07928859]
[1770798907704,3.123601,80.95,80.926,0.07928859]
[1770798908310,1e-06,80.95,80.926,0.07928859]
[1770798908813,1e-06,80.95,80.928,11.127]
[1770798911616,3.123601,80.96,80.929,10.56935335]
[1770798912219,3.123601,80.96,80.93,21.68474314]
[1770798912604,3.123601,80.96,80.931,10.55804314]
[1770798912804,2.88054744,80.96,80.931,10.55804314]
[1770798913415,3.123601,80.95,80.926,0.07928859]
[1770798913913,3.123601,80.95,80.926,10.63733173]
[1770798914616,3.123601,80.96,80.926,10.63733173]
[1770798915409,3.123601,80.96,80.927,11.1271]
[1770798915614,3.123601,80.96,80.928,10.5449509]
[1770798916018,3.123601,80.97,80.931,10.5449509]
[1770798916620,3.123601,80.96,80.931,10.5449509]
[1770798917318,3.123601,80.95,80.931,10.5449509]
[1770798918818,3.123601,80.95,80.932,0.07928006]
[1770798919517,22.2312,81.012,80.932,0.07928006]
[1770798919518,3.123601,81.01,80.967,10.5276121]
[1770798919911,3.123601,81.0,80.967,10.5276121]
[1770798920114,327.98207886,81.039,80.97,13.69953525]
[1770798920308,3.123601,81.02,80.971,10.57593425]
[1770798920716,11.32724274,81.07,80.989,10.57593425]
[1770798920917,3.123601,81.04,80.991,10.57593425]
[1770798921117,3.123601,81.03,80.991,10.57593425]
[1770798921515,3.123601,81.03,80.992,11.1182]
[1770798921716,109.6911,81.045,80.993,10.5758776]
[1770798921913,3.123601,81.03,80.993,10.5758776]
[1770798922119,3.123601,81.02,80.961,10.24600778]
[1770798922417,98.58,81.029,80.961,10.24600778]
[1770798922418,3.123601,81.01,80.961,10.24600778]
[1770798923216,3.123601,81.01,80.972,10.24600778]
[1770798923416,98.58,81.029,80.972,10.24600778]
[1770798923417,3.123601,81.02,80.972,10.24600778]
[1770798923920,3.123601,81.02,80.975,10.24600778]
[1770798924118,0.07946167,81.004,80.975,10.24600778]
[1770798924820,0.07946167,81.004,80.979,10.31164173]
[1770798925124,98.56,81.029,80.981,10.31164173]
[1770798925821,3.123601,81.03,80.982,11.1196]
[1770798926024,3.123601,81.03,80.983,10.27145847]
[1770798927118,3.123601,81.03,80.998,0.08022751]
[1770798927519,11.1123,81.036,80.983,10.27145847]
[1770798927520,3.123601,81.02,80.983,10.27145847]
[1770798927824,3.123601,81.02,80.984,11.1193]
[1770798928019,3.123601,81.03,80.984,21.38550845]
[1770798928331,3.123601,81.03,80.985,10.26620845]
[1770798929223,3.123601,81.03,80.98,3.123601]
[1770798929224,111.68,81.037,80.989,10.26716704]
[1770798929424,111.68,81.037,80.991,10.26716704]
[1770798929827,111.68,81.037,81.001,10.26716704]
[1770798930027,3.123601,81.05,81.001,10.26716704]
[1770798930728,0.07835238,81.034,81.001,10.26716704]
[1770798931721,0.07835238,81.034,81.002,11.1168]
[1770798932026,0.07835238,81.034,81.003,10.25339442]
[1770798932728,0.07835238,81.034,81.007,10.2551322]
[1770798933531,0.07835238,81.034,81.011,21.3707322]
[1770798933724,0.07835238,81.034,81.011,10.2551322]
[1770798935026,3.12006678,81.05,81.011,10.2551322]
[1770798935232,3.12006678,81.06,81.011,10.2551322]
[1770798935528,150.88,81.068,81.011,10.2551322]
[1770798935729,3.12006678,81.09,81.031,10.20807365]
[1770798936034,3.12006678,81.08,81.031,10.20807365]
[1770798936731,3.12006678,81.08,81.041,10.19859299]
[1770798936934,3.12006678,81.08,81.047,0.07896594]
[1770798937724,11.1012,81.117,81.061,8.6385596]
[1770798937928,22.65448548,81.177,81.061,8.6385596]
[1770798937929,3.12006678,81.1,81.061,8.6385596]
[1770798938630,98.52,81.13,81.012,12.13513182]
[1770798938631,3.12006678,81.12,81.066,8.64121878]
[1770798938836,101.64006678,81.13,81.071,8.64121878]
[1770798939334,150.82,81.129,81.071,8.64121878]
[1770798939531,3.12006678,81.11,81.071,8.64121878]
[1770798939731,3.12006678,81.1,81.051,8.64121878]
[1770798939933,3.12006678,81.11,81.051,8.64121878]
[1770798940136,11.1023,81.109,81.053,8.64121878]
[1770798940635,3.12006678,81.1,81.053,8.64121878]
[1770798941530,98.48,81.109,81.056,8.59714655]
[1770798941736,3.12006678,81.11,81.068,0.07904337]
[1770798941935,101.06,81.111,81.068,0.07904337]
[1770798942229,3.12006678,81.11,81.068,0.07904337]
[1770798942832,3.12006678,81.11,81.063,8.63641858]
[1770798943229,3.12006678,81.11,81.03,27.0]
[1770798943230,2.14582351,81.148,81.081,8.63641858]
[1770798943433,3.12006678,81.13,81.081,8.63641858]
[1770798944741,3.12006678,81.12,81.081,8.63641858]
[1770798946439,3.12006678,81.13,81.084,8.64595653]
[1770798947140,3.12006678,81.16,81.111,7.08592314]
[1770798947838,3.12006678,81.15,81.111,7.08592314]
[1770798948747,3.12006678,81.15,81.069,98.44]
[1770798948748,3.12006678,81.13,81.062,7.12238616]
[1770798949041,8.34054144,81.15,81.081,7.12238616]
[1770798949249,11.0979,81.141,81.081,7.12238616]
[1770798949441,98.44,81.14,81.081,7.12238616]
[1770798949838,11.0996,81.129,81.081,7.12238616]
[1770798950044,8.34054144,81.11,81.048,7.12238616]
[1770798950450,98.42,81.109,81.048,7.12238616]
[1770798951453,105.7,81.109,81.048,7.12238616]
[1770798951753,11.1025,81.108,81.052,7.27979789]
[1770798952846,109.5225,81.108,81.052,7.27979789]
[1770798954246,11.1025,81.108,81.054,7.32316304]
[1770798954854,11.1025,81.108,81.073,0.07805471]
[1770798955351,11.1011,81.118,81.073,0.07805471]
[1770798955555,8.34054144,81.12,81.073,0.07805471]
[1770798955849,8.34054144,81.12,81.059,7.32316304]
[1770798956056,19.44134144,81.12,81.059,7.32316304]
[1770798956756,19.44134144,81.12,81.081,0.07831046]
[1770798957855,98.42,81.119,81.081,0.07831046]
[1770798958549,116.68,81.118,81.081,0.07831046]
[1770798958749,116.68,81.118,81.059,7.32316304]
[1770798958750,11.1013,81.116,81.059,7.32316304]
[1770798959149,116.68,81.118,81.059,7.32316304]
[1770798960045,123.78,81.117,81.059,7.32316304]
[1770798960450,11.1015,81.115,81.059,7.32316304]
[1770798960757,98.42,81.114,81.061,7.39883833]
[1770798961558,0.07943886,81.096,81.061,7.39883833]
[1770798961859,0.07943886,81.096,81.065,7.39883833]
[1770798962362,98.42,81.114,81.065,7.39883833]
[1770798963059,8.34054144,81.14,81.075,7.39893725]
[1770798963463,98.42,81.139,81.075,7.39893725]
[1770798963661,11.1002,81.125,81.075,7.39893725]
[1770798963956,8.34054144,81.12,81.075,7.39893725]
[1770798964455,11.1009,81.119,81.075,7.39893725]
[1770798965059,11.1021,81.111,81.055,7.39831478]
[1770798966959,11.1021,81.111,81.058,7.40814662]
[1770798967764,11.1021,81.111,81.061,7.40814662]
[1770798970859,11.1021,81.111,81.078,0.07805661]
[1770798971067,3.90194023,81.159,81.089,3.80419996]
[1770798971369,8.34054144,81.16,81.089,3.80419996]
[1770798971370,3.90194023,81.157,81.089,3.80419996]
[1770798971571,3.90194023,81.142,81.089,3.80419996]
[1770798971963,3.90194023,81.139,81.089,3.80419996]
[1770798973265,3.90194023,81.139,81.106,0.0777579]
[1770798973768,3.90194023,81.133,81.106,0.0777579]
[1770798974064,3.90194023,81.147,81.106,0.0777579]
[1770798974268,11.0973,81.146,81.106,0.0777579]
[1770798974466,143.62,81.163,81.107,3.80419996]
[1770798974467,3.90194023,81.162,81.107,3.80419996]
[1770798974966,3.90194023,81.149,81.087,3.80419996]
[1770798975166,3.90194023,81.164,81.087,3.80419996]
[1770798975369,3.90194023,81.174,81.12,3.80419996]
[1770798975556,3.90194023,81.185,81.12,3.80419996]
[1770798976257,3.90194023,81.183,81.12,3.80419996]
[1770798977064,3.90194023,81.177,81.12,3.80419996]
[1770798978768,3.90194023,81.172,81.12,3.80419996]
[1770798979968,3.90194023,81.159,81.103,3.80419996]
[1770798980367,8.34054144,81.16,81.071,3.87694946]
[1770798980368,11.0989,81.134,81.071,3.87694946]
[1770798981662,11.0976,81.143,81.091,3.87694946]
[1770798982168,11.0976,81.143,81.095,3.87694946]
[1770798982376,133.52597509,81.154,81.094,0.07785449]
[1770798982377,3.94597509,81.132,81.094,0.07785449]
[1770798982667,3.94597509,81.132,81.081,3.87694946]
[1770798982875,8.34054144,81.14,81.081,3.87694946]
[1770798983071,3.94597509,81.139,81.105,0.07779419]
[1770798983269,3.94597509,81.123,81.081,3.87694946]
[1770798985381,14.90746818,81.12,81.081,3.87694946]
[1770798986781,3.80666818,81.115,81.058,11.1092]
[1770798987077,3.80666818,81.114,81.051,3.88486165]
[1770798987280,3.80666818,81.094,81.039,11.1117]
[1770798987980,3.80666818,81.094,81.04,3.88486165]
[1770798988183,3.80666818,81.092,81.04,3.88486165]
[1770798990482,0.07911321,81.074,81.04,3.88486165]
[1770798991776,3.80666818,81.092,81.04,3.88486165]
[1770798992479,3.80666818,81.105,81.04,3.88486165]
[1770798992988,3.80666818,81.099,81.04,3.88486165]
[1770798993185,3.80666818,81.093,81.04,3.88486165]
[1770798993886,3.80666818,81.093,81.011,106.32]
[1770798993887,3.80666818,81.079,81.011,3.88486165]
[1770798994478,11.1079,81.068,81.014,3.88486165]
[1770798994781,8.35023542,81.08,81.014,3.88486165]
[1770798994782,3.80666818,81.067,81.014,3.88486165]
[1770798996391,14.91516818,81.064,81.014,3.88486165]
[1770798996780,14.91516818,81.064,81.032,0.08027057]
[1770798997076,3.80666818,81.057,80.999,3.88486165]
[1770798997281,0.07926391,81.047,80.999,3.88486165]
[1770798998294,11.111,81.045,80.999,3.88486165]
[1770798998596,3.80666818,81.044,80.999,3.88486165]
[1770798998776,3.80666818,81.044,80.998,484.24420729]
[1770798998777,3.80666818,81.01,80.951,3.88486165]
[1770798999286,3.80666818,81.01,80.916,98.42]
[1770798999287,8.35023542,81.02,80.955,3.88486165]
[1770798999489,3.80666818,81.026,80.955,3.88486165]
[1770799000090,0.08212551,80.999,80.955,3.88486165]
[1770799000790,0.08212551,80.999,80.97,15.00606165]
[1770799001292,14.92026818,81.026,80.971,3.88486165]
[1770799001494,11.114,81.024,80.971,3.88486165]
[1770799001792,3.80666818,81.023,80.971,3.88486165]
[1770799001988,14.92096818,81.022,80.971,3.88486165]
[1770799002195,0.08131771,81.006,80.971,3.88486165]
[1770799002989,0.08131771,81.006,80.961,11.1225]
[1770799003287,0.08131771,81.006,80.964,15.00696165]
[1770799003493,0.08131771,81.006,80.965,3.88486165]
[1770799003891,3.80666818,81.008,80.965,3.88486165]
[1770799004194,0.07948549,80.994,80.965,3.88486165]
[1770799007394,0.07948549,80.994,80.968,3.88486165]
[1770799007587,98.48,81.028,80.968,3.88486165]
[1770799007998,3.80666818,81.033,80.978,3.88486165]
[1770799008900,3.80666818,81.033,80.96,8.35023542]
[1770799008901,3.80666818,81.033,80.98,3.88486165]
[1770799009296,3.80666818,81.033,80.984,3.88486165]
[1770799009791,3.80666818,81.033,80.948,98.5]
[1770799009792,3.80666818,81.033,80.97,3.88486165]
[1770799010499,3.88486997,81.029,80.97,3.88486165]
[1770799010701,3.88486997,81.027,80.972,4.0970722]
[1770799011101,3.88486997,81.025,80.949,4.0970722]
[1770799011299,3.88486997,81.009,80.949,4.0970722]
[1770799011799,8.36464477,81.01,80.949,4.0970722]
[1770799011800,3.88486997,80.995,80.949,4.0970722]
[1770799012196,3.88486997,81.009,80.949,4.0970722]
[1770799012595,0.0785638,80.98,80.949,4.0970722]
[1770799013294,3.88486997,81.009,80.949,4.0970722]
[1770799013696,3.88486997,81.009,80.961,4.0970722]
[1770799014297,3.88486997,81.009,80.947,4.0970722]
[1770799014502,3.88486997,81.007,80.947,4.0970722]
[1770799014994,11.1182,80.993,80.947,4.0970722]
[1770799015194,3.88486997,80.993,80.947,4.0970722]
[1770799016494,3.88486997,80.993,80.962,0.07930951]
[1770799018797,11.1183,80.992,80.962,0.07930951]
[1770799019903,3.88486997,80.986,80.931,4.0970722]
[1770799021308,8.36464477,80.99,80.931,4.0970722]
[1770799021309,3.88486997,80.983,80.931,4.0970722]
[1770799022000,3.88486997,80.979,80.89,106.88464477]
[1770799022307,3.88486997,80.979,80.891,4.0970722]
[1770799022609,0.080167,80.943,80.915,4.0970722]
[1770799023399,3.88486997,80.967,80.915,4.0970722]
[1770799023796,11.1219,80.966,80.918,11.1284]
[1770799024000,11.1219,80.966,80.918,15.2254722]
[1770799024202,11.1219,80.966,80.919,4.0970722]
[1770799024406,11.1219,80.966,80.92,11.1281]
[1770799024600,11.1219,80.966,80.921,4.0970722]
[1770799024802,15.00676997,80.966,80.921,4.0970722]
[1770799025205,3.88486997,80.963,80.921,4.0970722]
[1770799027010,3.88486997,80.963,80.934,0.08003963]
[1770799027212,3.88486997,80.963,80.881,59.3869]
[1770799027213,3.88486997,80.963,80.904,4.0970722]
[1770799027802,3.88486997,80.952,80.905,11.1302]
[1770799028409,3.88486997,80.952,80.905,15.2272722]
[1770799028909,3.88486997,80.949,80.89,4.0970722]
[1770799029097,0.07906847,80.937,80.89,4.0970722]
[1770799029299,3.88486997,80.936,80.89,4.0970722]
[1770799029707,3.88486997,80.936,80.892,11.132]
[1770799029911,3.88486997,80.929,80.872,4.0970722]
[1770799030611,3.88486997,80.929,80.881,11.1335]
[1770799031508,3.88486997,80.929,80.872,4.0970722]
[1770799031912,8.36464477,80.93,80.872,4.0970722]
[1770799031913,3.88486997,80.926,80.872,4.0970722]
[1770799032109,0.08139262,80.909,80.872,4.0970722]
[1770799034910,11.126,80.936,80.872,4.0970722]
[1770799035103,8.36464477,80.95,80.884,4.0970722]
[1770799035608,11.1233,80.956,80.895,4.0970722]
[1770799036307,11.1239,80.952,80.897,4.0970722]
[1770799036912,109.7224,80.963,80.904,4.0970722]
[1770799037214,3.88486997,80.971,80.917,4.0970722]
[1770799037606,133.78486997,80.985,80.92,4.0970722]
[1770799037910,133.78486997,80.985,80.906,4.0970722]
[1770799037911,3.88486997,80.984,80.906,4.0970722]
[1770799038212,3.88486997,80.984,80.881,4.0970722]
[1770799038409,3.88486997,80.982,80.881,4.0970722]
[1770799038716,3.88486997,80.959,80.894,4.0970722]
[1770799040014,8.36464477,80.96,80.894,4.0970722]
[1770799040015,3.88486997,80.957,80.894,4.0970722]
[1770799040219,0.08001616,80.935,80.894,4.0970722]
[1770799040717,0.08001616,80.935,80.898,4.01606084]
[1770799041211,15.00806997,80.957,80.898,4.01606084]
[1770799041715,15.00806997,80.957,80.9,4.01606084]
[1770799042114,3.88486997,80.957,80.9,4.01606084]
[1770799043619,0.08089625,80.937,80.9,4.01606084]
[1770799043916,0.08089625,80.937,80.902,4.01606084]
[1770799044421,3.88486997,80.957,80.902,4.01606084]
[1770799045318,8.36464477,80.97,80.902,4.01606084]
[1770799045319,3.92294693,80.945,80.902,4.01606084]
[1770799045718,0.08084486,80.938,80.902,4.01606084]
[1770799046121,3.92294693,80.959,80.902,4.01606084]
[1770799047714,3.92294693,80.959,80.906,11.13]
[1770799047916,3.92294693,80.959,80.907,3.95627385]
[1770799048113,3.92294693,80.959,80.884,3.95627385]
[1770799049724,11.1246,80.946,80.887,3.95627385]
[1770799050823,11.1246,80.946,80.892,3.95627385]
[1770799051221,11.1246,80.946,80.894,3.95627385]
[1770799052017,11.1233,80.956,80.894,3.95627385]
[1770799052419,3.92294693,80.972,80.894,3.95627385]
[1770799052620,3.92294693,80.972,80.896,3.95627385]
[1770799052919,3.12633682,80.97,80.921,3.95627385]
[1770799053118,3.12633682,80.97,80.92,3.12633682]
[1770799053119,3.12633682,80.97,80.927,3.95627385]
[1770799053826,11.1219,80.966,80.927,3.95627385]
[1770799055713,3.92294693,80.972,80.927,3.95627385]
[1770799058926,3.92294693,80.967,80.926,0.07960043]
[1770799059522,3.92294693,80.967,80.914,3.95627385]
[1770799059822,3.92294693,80.963,80.914,3.95627385]
[1770799061015,3.92294693,80.963,80.915,3.95627385]
[1770799061628,3.92294693,80.963,80.931,0.08004372]
[1770799061825,3.92294693,80.963,80.901,3.95627385]
[1770799062027,3.92294693,80.959,80.901,3.95627385]
[1770799063429,3.92294693,80.944,80.901,3.95627385]
[1770799064324,11.126,80.936,80.901,3.95627385]
[1770799065630,3.92294693,80.943,80.901,3.95627385]
[1770799065932,0.07838477,80.927,80.901,3.95627385]
[1770799071340,3.83433204,80.955,80.907,4.12649655]
[1770799072829,8.37427389,80.97,80.907,4.12649655]
[1770799072830,14.95793204,80.954,80.907,4.12649655]
[1770799073031,3.83433204,80.953,80.907,4.12649655]
[1770799074825,11.124,80.951,80.907,4.12649655]
[1770799075640,3.83433204,80.944,80.895,4.12649655]
[1770799076540,3.83433204,80.944,80.911,0.07853988]
[1770799076734,14.96033204,80.936,80.895,4.12649655]
[1770799078538,3.83433204,80.935,80.895,4.12649655]
[1770799081634,3.12898604,80.93,80.895,4.12649655]
[1770799082334,3.83433204,80.919,80.882,4.12649655]
[1770799083528,3.12898604,80.91,80.871,777.1265696]
[1770799083743,3.83433204,80.909,80.871,777.1265696]
[1770799083931,3.12898604,80.9,80.871,777.1265696]
[1770799084336,3.83433204,80.899,80.857,4.12649655]
[1770799085237,0.07819094,80.886,80.857,4.12649655]
[1770799086345,3.12898604,80.88,80.841,4.12649655]
[1770799087346,3.12898604,80.89,80.841,4.12649655]
[1770799087536,3.83433204,80.902,80.818,12.53068523]
[1770799087537,3.12898604,80.9,80.851,4.12649655]
[1770799087737,3.83433204,80.899,80.851,4.12649655]
[1770799087934,3.83433204,80.889,80.851,4.12649655]
[1770799089040,0.08037213,80.878,80.837,4.12649655]
[1770799091346,3.12898604,80.87,80.837,4.12649655]
[1770799091648,3.12898604,80.87,80.828,4.12649655]
[1770799092145,3.12898604,80.86,80.811,4.12649655]
[1770799093042,3.12898604,80.86,80.814,4.12649655]
[1770799093441,3.83433204,80.869,80.823,4.12649655]
[1770799093643,0.07845468,80.845,80.823,4.12649655]
[1770799096643,11.1333,80.883,80.831,4.12649655]
[1770799096849,3.12898604,80.88,80.831,4.12649655]
[1770799097849,3.12898604,80.89,80.841,4.12649655]
[1770799098349,3.83433204,80.889,80.841,4.12649655]
[1770799098548,3.83433204,80.889,80.857,0.07951431]
[1770799098749,14.96683204,80.889,80.857,0.07951431]
[1770799098944,3.83433204,80.879,80.83,3.12898604]
[1770799099147,3.83433204,80.869,80.828,4.12649655]
[1770799099348,3.12898604,80.86,80.828,4.12649655]
[1770799100140,3.83433204,80.869,80.828,4.12649655]
[1770799100847,11.1358,80.865,80.828,4.12649655]
[1770799102353,0.0803465,80.855,80.828,4.12649655]
[1770799105256,7.02895215,80.89,80.831,3.81881052]
[1770799105447,3.12898604,80.87,80.831,3.81881052]
[1770799105851,3.12898604,80.88,80.831,3.81881052]
[1770799106358,3.12898604,80.89,80.841,3.81881052]
[1770799106756,3.12898604,80.89,80.848,3.81881052]
[1770799107150,3.89996611,80.892,80.848,3.81881052]
[1770799107656,15.27955256,80.969,80.847,0.08001511]
[1770799107657,3.89996611,80.918,80.861,3.81881052]
[1770799108053,3.12898604,80.91,80.861,3.81881052]
[1770799108862,3.12898604,80.91,80.863,3.81881052]
[1770799109161,7.02895215,80.91,80.863,3.81881052]
[1770799109356,3.89996611,80.909,80.863,3.81881052]
[1770799109761,3.12898604,80.9,80.863,3.81881052]
[1770799110358,3.12898604,80.9,80.873,0.07864683]
[1770799111156,7.02895215,80.9,80.873,0.07864683]
[1770799111364,3.89996611,80.899,80.852,11.1374]
[1770799111954,3.12898604,80.89,80.852,11.1374]
[1770799112661,3.89996611,80.899,80.852,11.1374]
[1770799113065,3.89996611,80.899,80.853,3.81881052]
[1770799116863,0.07900052,80.884,80.853,3.81881052]
[1770799117168,0.07900052,80.884,80.855,3.81881052]
[1770799119468,0.07900052,80.884,80.85,3.13208959]
[1770799119469,0.07900052,80.884,80.859,3.81881052]
[1770799119771,3.89996611,80.92,80.871,3.81881052]
[1770799120864,3.89996611,80.92,80.872,3.81881052]
[1770799121375,7.0320557,80.92,80.888,0.08037518]
[1770799121874,11.1286,80.918,80.888,0.08037518]
[1770799123971,3.89996611,80.917,80.872,3.81881052]
[1770799124172,3.89996611,80.915,80.872,3.81881052]
[1770799124867,3.13208959,80.91,80.872,3.81881052]
[1770799125370,3.89996611,80.909,80.872,3.81881052]
[1770799127967,3.13208959,80.92,80.872,3.81881052]
[1770799128876,3.89996611,80.919,80.872,3.81881052]
[1770799129675,3.89996611,80.919,80.873,11.1345]
[1770799129978,3.89996611,80.919,80.874,3.81881052]
[1770799132680,3.89996611,80.919,80.876,3.74204876]
[1770799133481,3.82153633,80.93,80.889,3.74204876]
[1770799134271,3.82153633,80.93,80.891,3.74204876]
[1770799134469,11.45966442,80.976,80.856,22.83320384]
[1770799134470,3.82336582,80.945,80.901,3.74204876]
[1770799134774,3.82336582,80.939,80.89,3.74204876]
[1770799134978,0.08098234,80.931,80.89,3.74204876]
[1770799135373,0.08098234,80.931,80.892,11.1319]
[1770799136172,3.13208959,80.93,80.892,3.74204876]
[1770799136377,3.60308042,80.929,80.892,3.74204876]
[1770799137977,3.60308042,80.929,80.879,3.74204876]
[1770799138777,3.60308042,80.929,80.881,3.74204876]
[1770799139878,3.60308042,80.929,80.885,11.1329]
[1770799140268,3.12966757,80.92,80.885,11.1329]
[1770799141280,0.079511,80.911,80.885,11.1329]
[1770799143583,0.079511,80.911,80.881,3.74204876]
[1770799143786,0.079511,80.911,80.877,11.134]
[1770799147884,0.079511,80.911,80.878,3.74204876]
[1770799149397,3.12966757,80.91,80.878,3.74204876]
[1770799149588,0.079511,80.911,80.878,3.74204876]
[1770799151403,3.56586717,80.909,80.867,3.74204876]
[1770799151702,3.12966757,80.9,80.867,3.74204876]
[1770799151901,3.12966757,80.9,80.85,3.12966757]
[1770799151902,3.56586717,80.899,80.854,14.87924876]
[1770799152399,0.07812357,80.892,80.854,14.87924876]
[1770799153193,0.07812357,80.892,80.855,3.74204876]
[1770799154297,3.61026925,80.888,80.843,3.74204876]
[1770799154595,0.07812357,80.892,80.843,3.74204876]
[1770799154596,3.61026925,80.879,80.843,3.74204876]
[1770799155794,3.12966757,80.89,80.843,3.74204876]
[1770799156191,3.12966757,80.88,80.843,3.74204876]
[1770799158703,11.1341,80.878,80.843,3.74204876]
[1770799159401,3.12966757,80.88,80.843,3.74204876]
[1770799159402,11.1329,80.886,80.843,3.74204876]
[1770799159602,3.12966757,80.92,80.861,3.74204876]
[1770799159803,3.12966757,80.92,80.871,3.74204876]
[1770799160200,3.12966757,80.92,80.882,4.06546193]
[1770799160806,14.25796757,80.92,80.882,4.06546193]
[1770799162906,3.12966757,80.92,80.882,4.06546193]
[1770799163111,3.12966757,80.93,80.882,4.06546193]
[1770799163408,3.12966757,80.91,80.882,4.06546193]
[1770799164005,3.12966757,80.91,80.882,3.98565625]
[1770799165612,3.12966757,80.91,80.868,3.75546934]
[1770799166509,3.12966757,80.91,80.881,0.07997091]
[1770799166712,3.77789553,80.919,80.881,0.07997091]
[1770799167611,3.66024878,80.933,80.882,3.75546934]
[1770799167911,3.12966757,80.93,80.882,3.75546934]
[1770799169916,3.12966757,80.93,80.898,0.07996461]
[1770799170111,3.12966757,80.93,80.898,3.83543395]
[1770799170414,3.12966757,80.97,80.921,3.75546934]
[1770799170709,3.12966757,80.98,80.931,3.75546934]
[1770799172117,3.67665955,80.985,80.931,3.75546934]
[1770799172305,3.12966757,80.98,80.931,3.75546934]
[1770799172916,6.86817991,80.98,80.931,3.75546934]
[1770799174019,3.12966757,80.97,80.931,3.75546934]
[1770799174612,3.73851234,80.979,80.931,3.75546934]
[1770799174923,3.12658902,80.96,80.917,3.75546934]
[1770799175416,3.67298617,80.969,80.923,3.75546934]
[1770799175818,3.67298617,80.969,80.93,0.07917623]
[1770799179613,11.1216,80.968,80.93,0.07917623]